fUSD/lending_fUSD_20251229
["ID","MTS","AMOUNT","RATE_DAILY","PERIOD"]
[400002070,1767009261726,500.0,0.00012577,2]
[400002071,1767009261797,500.0,0.00012577,2]
[400002072,1767009261835,481.01304976,0.00012577,2]
[400002073,1767009261874,500.0,0.00012577,2]
[400002074,1767009261917,500.0,0.00012577,2]
[400002075,1767009261956,500.0,0.00012577,2]
[400002076,1767009261994,500.0,0.00012577,2]
[400002077,1767009262034,500.0,0.00012577,2]
[400002078,1767009262086,500.0,0.00012577,2]
[400002079,1767009262131,500.0,0.00012577,2]
[400002080,1767009262174,45.86435811,0.00012577,2]
[400002081,1767009262200,454.13564189,0.00012577,2]
[400002082,1767009262239,500.0,0.00012577,2]
[400002083,1767009262281,500.0,0.00012577,2]
[400002084,1767009262353,500.0,0.00012577,2]
[400002086,1767009378371,-301.3628905,0.00012479,2]
[400002087,1767009378402,-275.04784709,0.00012479,2]
[400002088,1767009378431,-300.0,0.00012577,2]
[400002089,1767009378680,-208.73086921,0.00012577,2]
[400002090,1767009378719,-500.0,0.00012577,2]
[400002091,1767009378755,-241.21475372,0.00012577,2]
[400002092,1767009378784,-500.0,0.00012577,2]
[400002093,1767009378812,-473.13165048,0.00012577,2]
[400002094,1767009378840,-292.07030793,0.00012577,2]
[400002095,1767009378878,-241.21475372,0.00012577,2]
[400002096,1767009378913,-500.0,0.00012577,2]
[400002097,1767009382339,316.71739771,0.00012528,2]
[400002098,1767009420941,-1000.0,0.000209,30]
[400002099,1767009460619,-1000.0,0.000209,30]
[400002100,1767009517805,-268.56864246,0.00012479,2]
[400002101,1767009517835,-150.0,0.00012577,2]
[400002102,1767009517864,-200.0,0.00012578,2]
[400002103,1767009517893,-201.55201247,0.00012578,2]
[400002104,1767009517922,-151.0,0.00012578,2]
[400002105,1767009517949,-151.0,0.00012578,2]
[400002106,1767009517976,-500.0,0.00012578,2]
[400002107,1767009518003,-151.0,0.00012578,2]
[400002108,1767009518031,-500.0,0.00012578,2]
[400002109,1767009518066,-151.0,0.00012578,2]
[400002110,1767009518105,-500.0,0.00012578,2]
[400002111,1767009518148,-153.70166196,0.00012578,2]
[400002112,1767009518180,-500.0,0.00012578,2]
[400002113,1767009518215,-500.0,0.00012578,2]
[400002114,1767009518250,-500.0,0.00012578,2]
[400002115,1767009518287,-344.36536622,0.00012578,2]
[400002116,1767009518589,-155.63463378,0.00012578,2]
[400002117,1767009518625,-500.0,0.00012578,2]
[400002118,1767009518660,-201.19301451,0.00012578,2]
[400002119,1767009518694,-151.0,0.00012578,2]
[400002120,1767009518730,-151.0,0.00012578,2]
[400002121,1767009518765,-151.0,0.00012578,2]
[400002122,1767009518802,-151.0,0.00012578,2]
[400002123,1767009518839,-151.0,0.00012578,2]
[400002124,1767009518883,-151.0,0.00012578,2]
[400002125,1767009518920,-151.0,0.00012578,2]
[400002126,1767009518957,-151.0,0.00012578,2]
[400002127,1767009518994,-151.0,0.00012578,2]
[400002128,1767009519028,-151.0,0.00012578,2]
[400002129,1767009519061,-151.0,0.00012578,2]
[400002130,1767009519096,-151.0,0.00012578,2]
[400002131,1767009564736,2925.73190099,0.00012479,2]
[400002132,1767009587644,179.04576164,0.00012479,2]
[400002133,1767009594867,321.97179304,0.00012479,2]
[400002134,1767009601291,300.0,0.00012577,2]
[400002135,1767009601475,300.0,0.00012577,2]
[400002136,1767009601615,150.0,0.00012577,2]
[400002137,1767009602887,300.0,0.00012577,2]
[400002138,1767009603383,185.60524775,0.00012578,2]
[400002139,1767009603407,67.39475225,0.00012578,2]
[400002140,1767009659746,301.42557687,0.00012578,2]
[400002141,1767009670279,2532.90058051,0.00012478,2]
[400002142,1767009693522,655.336,0.00012327,2]
[400002143,1767009727797,179.04576163,0.00012478,2]
[400002144,1767009730601,151.0,0.00012578,2]
[400002145,1767009731261,151.0,0.00012578,2]
[400002146,1767009731865,151.0,0.00012578,2]
[400002147,1767009732470,151.0,0.00012578,2]
[400002148,1767009733109,151.0,0.00012578,2]
[400002149,1767009733702,151.0,0.00012578,2]
[400002150,1767009734361,151.0,0.00012578,2]
[400002151,1767009734996,151.0,0.00012578,2]
[400002152,1767009735754,151.0,0.00012578,2]
[400002153,1767009736538,151.0,0.00012578,2]
[400002154,1767009737154,151.0,0.00012578,2]
[400002155,1767009737747,151.0,0.00012578,2]
[400002156,1767009737912,599.90625443,0.00012578,2]
[400002157,1767009858031,179.04576163,0.00012478,2]
[400002158,1767009875128,281.72531891,0.00012478,2]
[400002159,1767009901180,300.0,0.00012577,2]
[400002160,1767009943801,6936.33,0.00030137,120]
[400002161,1767009944322,452.1383653,0.00012578,2]
[400002162,1767009944372,151.0,0.00012578,2]
[400002163,1767009945209,226.06918265,0.00012578,2]
[400002164,1767010179055,-2633.1587109,0.00012478,2]
[400002165,1767010179084,-211.0580413,0.00012478,2]
[400002166,1767010194144,-226.06918265,0.00012578,2]
[400002167,1767010209584,-296.4492501,0.00012578,2]
[400002168,1767010224633,-500.0,0.00012578,2]
[400002169,1767010224663,-500.0,0.00012578,2]
[400002170,1767010224693,-500.0,0.00012578,2]
[400002171,1767010224722,-554.6797,0.00012579,2]
[400002175,1767010231959,-165.27,0.00012708,2]
[400002176,1767010231969,-150.0,0.00013697,2]
[400002177,1767010231980,-300.0,0.00013697,2]
[400002178,1767010231989,-94.21192111,0.00013697,2]
[400002179,1767010232001,-205.78807889,0.00013697,2]
[400002180,1767010232010,-500.0,0.00013698,2]
[400002181,1767010232020,-159.39241747,0.00013698,2]
[400002183,1767010232028,-90.28507184,0.00013698,2]
[400002185,1767010232040,-409.71492816,0.00013698,2]
[400002187,1767010232049,-412.22378224,0.00013698,2]
[400002189,1767010232060,-87.77621776,0.00013698,2]
[400002191,1767010232069,-561.63038578,0.00013698,2]
[400002193,1767010232078,-382.59956599,0.00013698,2]
[400002195,1767010232090,-117.40043401,0.00013698,2]
[400002196,1767010232099,-203.25617364,0.00013698,2]
[400002197,1767010232111,-296.74382636,0.00013698,2]
[400002198,1767010232120,-328.87559704,0.00013698,2]
[400002199,1767010232131,-171.12440296,0.00013698,2]
[400002200,1767010232140,-502.46263758,0.00013698,2]
[400002201,1767010232150,-22.52496384,0.00013698,2]
[400002202,1767010232163,-477.47503616,0.00013698,2]
[400002203,1767010232173,-64.93699428,0.00013698,2]
[400002204,1767010232191,-250.0,0.00013698,2]
[400002205,1767010232202,-192.69832624,0.00013698,2]
[400002206,1767010232211,-250.0,0.00013726,2]
[400002207,1767010232220,-15819.72534639,0.00013838,2]
[400002208,1767010232231,-1000.0,0.00014214,2]
[400002210,1767010232241,-3396.39,0.0001436,2]
[400002211,1767010232250,-403.31243356,0.00014573,2]
[400002212,1767010232259,-223.27307633,0.00014573,2]
[400002213,1767010232269,-500.0,0.00014573,2]
[400002214,1767010232278,-500.0,0.00014573,2]
[400002215,1767010232287,-500.0,0.00014573,2]
[400002217,1767010232297,-500.0,0.00014573,2]
[400002219,1767010232306,-160.31452297,0.00014573,2]
[400002221,1767010232315,-500.0,0.00014573,2]
[400002223,1767010232325,-177.11753301,0.00014573,2]
[400002225,1767010232334,-500.74348047,0.00014573,2]
[400002226,1767010232342,-500.0,0.00014573,2]
[400002228,1767010232352,-500.0,0.00014573,2]
[400002229,1767010232360,-500.0,0.00014573,2]
[400002230,1767010232370,-342.8792536,0.00014573,2]
[400002231,1767010232380,-401.62695103,0.00014573,2]
[400002232,1767010232389,-500.0,0.00014573,2]
[400002233,1767010232399,-1218.83,0.00014573,2]
[400002234,1767010232409,-255.0,0.0001482,2]
[400002235,1767010232418,-165.27,0.00014825,2]
[400002236,1767010232429,-1218.83,0.00014847,2]
[400002237,1767010232439,-166.66,0.00014861,2]
[400002238,1767010232448,-333.49,0.00014877,2]
[400002239,1767010232457,-176.45,0.00014918,2]
[400002240,1767010232467,-200.0,0.00014995,2]
[400002241,1767010232477,-420.0,0.0001501,2]
[400002242,1767010232486,-200.0,0.0001504,2]
[400002243,1767010232496,-500.0,0.00015043,2]
[400002244,1767010232506,-263.8,0.00015045,2]
[400002245,1767010232515,-200.0,0.00015073,2]
[400002246,1767010232524,-207.4,0.00015073,2]
[400002247,1767010232534,-215.0738,0.00015073,2]
[400002248,1767010232543,-223.0315306,0.00015073,2]
[400002249,1767010232555,-231.28369723,0.00015073,2]
[400002250,1767010232575,-239.84119403,0.00015073,2]
[400002251,1767010232585,-248.71531821,0.00015073,2]
[400002252,1767010232595,-273.60379333,0.00015073,2]
[400002253,1767010232604,-553.64373807,0.00015073,2]
[400002254,1767010232613,-500.0,0.00015073,2]
[400002255,1767010232623,-250.0,0.00015073,2]
[400002256,1767010232632,-500.0,0.00015073,2]
[400002257,1767010232642,-261.33546544,0.00015073,2]
[400002258,1767010232652,-500.0,0.00015073,2]
[400002259,1767010232662,-500.0,0.00015073,2]
[400002260,1767010232671,-500.0,0.00015073,2]
[400002261,1767010232680,-500.0,0.00015073,2]
[400002262,1767010232689,-500.0,0.00015073,2]
[400002263,1767010232699,-500.0,0.00015073,2]
[400002264,1767010232708,-500.0,0.00015073,2]
[400002265,1767010232717,-500.0,0.00015073,2]
[400002266,1767010232726,-500.0,0.00015073,2]
[400002267,1767010232735,-500.0,0.00015073,2]
[400002268,1767010232745,-500.0,0.00015073,2]
[400002269,1767010232754,-500.0,0.00015073,2]
[400002270,1767010232763,-330.42696608,0.00015073,2]
[400002271,1767010232772,-500.0,0.00015073,2]
[400002272,1767010232781,-500.0,0.00015073,2]
[400002273,1767010232791,-432.83782741,0.00015073,2]
[400002274,1767010232805,-29.18824297,0.00015073,2]
[400002275,1767010232814,-620.0,0.00015073,2]
[400002276,1767010232823,-500.0,0.00015073,2]
[400002277,1767010232832,-1000.0,0.00015073,2]
[400002278,1767010232842,-500.0,0.00015073,2]
[400002279,1767010232851,-1000.0,0.00015073,2]
[400002280,1767010232860,-500.0,0.00015073,2]
[400002281,1767010232869,-1000.0,0.00015073,2]
[400002282,1767010232879,-514.51547206,0.00015073,2]
[400002283,1767010232888,-1000.0,0.00015073,2]
[400002284,1767010232898,-1000.0,0.00015073,2]
[400002285,1767010232907,-322.6107,0.00015073,2]
[400002286,1767010232916,-500.0,0.00015073,2]
[400002287,1767010232926,-3240.0,0.00015077,2]
[400002288,1767010232936,-1000.0,0.00015121,2]
[400002289,1767010232945,-1000.0,0.00015121,2]
[400002290,1767010232957,-1000.0,0.00015121,2]
[400002291,1767010232967,-1218.83,0.00015121,2]
[400002292,1767010232977,-166.66,0.00015174,2]
[400002293,1767010232986,-4475.9752,0.00015178,2]
[400002294,1767010232996,-509.38793221,0.00015191,2]
[400002295,1767010233006,-150.0,0.00015264,2]
[400002296,1767010233015,-500.0,0.00015336,2]
[400002297,1767010233025,-2633.15871089,0.0001534,2]
[400002298,1767010233034,-500.0,0.00015347,2]
[400002299,1767010233043,-1048.95,0.00015367,2]
[400002300,1767010233052,-1218.83,0.00015395,2]
[400002301,1767010233061,-151.0,0.00015449,2]
[400002302,1767010233071,-151.0,0.00015449,2]
[400002303,1767010233081,-166.66,0.00015487,2]
[400002304,1767010233091,-151.0,0.00015489,2]
[400002305,1767010233101,-151.0,0.00015489,2]
[400002306,1767010233111,-151.0,0.000155,2]
[400002307,1767010233121,-151.0,0.000155,2]
[400002308,1767010233131,-151.0,0.00015501,2]
[400002309,1767010233140,-151.0,0.00015501,2]
[400002310,1767010233149,-574.12855637,0.00015621,2]
[400002311,1767010233158,-1218.83,0.00015668,2]
[400002312,1767010233167,-1500.0,0.00015668,2]
[400002313,1767010233177,-500.5,0.00015668,2]
[400002314,1767010233186,-1000.0,0.00015668,2]
[400002315,1767010233196,-166.66,0.000158,2]
[400002316,1767010233206,-1248.396,0.00015917,2]
[400002317,1767010233215,-2222.141,0.00015917,2]
[400002318,1767010233225,-613.0,0.00015917,2]
[400002319,1767010233236,-1327.0,0.00015917,2]
[400002320,1767010233507,-433.869,0.00015917,2]
[400002321,1767010233517,-1264.582,0.00015917,2]
[400002322,1767010233527,-912.0,0.00015917,2]
[400002323,1767010233537,-1205.818,0.00015917,2]
[400002324,1767010233547,-4900.64,0.00015917,2]
[400002325,1767010233557,-593.512,0.00015917,2]
[400002326,1767010233570,-3155.0,0.00015917,2]
[400002327,1767010233580,-1218.83,0.00015942,2]
[400002328,1767010233590,-500.0,0.00015945,2]
[400002329,1767010233600,-500.0,0.00015973,2]
[400002330,1767010233611,-2279.61052245,0.00016016,2]
[400002331,1767010233621,-166.66,0.00016113,2]
[400002332,1767010233631,-500.0,0.00016115,2]
[400002333,1767010233646,-500.0,0.00016115,2]
[400002334,1767010233656,-500.0,0.00016115,2]
[400002335,1767010233666,-500.0,0.00016115,2]
[400002336,1767010233675,-292.7342488,0.00016115,2]
[400002337,1767010233685,-257.36957998,0.00016115,2]
[400002338,1767010233695,-500.0,0.00016115,2]
[400002339,1767010233704,-500.0,0.00016115,2]
[400002340,1767010233713,-500.0,0.00016115,2]
[400002341,1767010233723,-500.0,0.00016115,2]
[400002342,1767010233737,-500.0,0.00016115,2]
[400002343,1767010233746,-500.0,0.00016115,2]
[400002344,1767010233756,-500.0,0.00016115,2]
[400002345,1767010233765,-500.0,0.00016115,2]
[400002346,1767010233775,-500.0,0.00016115,2]
[400002347,1767010233784,-500.0,0.00016115,2]
[400002348,1767010233793,-500.0,0.00016115,2]
[400002349,1767010233803,-500.0,0.00016115,2]
[400002350,1767010233812,-500.0,0.00016115,2]
[400002351,1767010233821,-500.0,0.00016115,2]
[400002352,1767010233830,-500.0,0.00016115,2]
[400002353,1767010233840,-447.42065186,0.00016115,2]
[400002354,1767010233869,-52.57934814,0.00016115,2]
[400002355,1767010233879,-500.0,0.00016115,2]
[400002356,1767010233889,-500.0,0.00016115,2]
[400002357,1767010233900,-500.0,0.00016115,2]
[400002358,1767010233910,-272.48422724,0.00016115,2]
[400002359,1767010233928,-227.51577276,0.00016115,2]
[400002360,1767010233938,-500.0,0.00016115,2]
[400002361,1767010233947,-500.0,0.00016115,2]
[400002362,1767010233957,-241.78417303,0.00016115,2]
[400002363,1767010233970,-258.21582697,0.00016115,2]
[400002364,1767010233982,-317.64292904,0.00016115,2]
[400002365,1767010233992,-303.08313126,0.00016115,2]
[400002366,1767010234003,-196.91686874,0.00016115,2]
[400002367,1767010234012,-500.0,0.00016115,2]
[400002368,1767010234022,-500.0,0.00016115,2]
[400002369,1767010234032,-500.0,0.00016115,2]
[400002370,1767010234042,-500.0,0.00016115,2]
[400002371,1767010234053,-18.4679176,0.00016115,2]
[400002372,1767010234065,-481.5320824,0.00016115,2]
[400002373,1767010234074,-390.9679176,0.00016115,2]
[400002374,1767010238160,-2432.0,0.00015917,2]
[400002375,1767010238170,-109.0320824,0.00016115,2]
[400002376,1767010238180,-500.0,0.00016115,2]
[400002377,1767010238189,-66.4679156,0.00016115,2]
[400002378,1767010238200,-433.5320844,0.00016115,2]
[400002379,1767010238210,-500.0,0.00016115,2]
[400002380,1767010238219,-500.0,0.00016115,2]
[400002381,1767010238229,-500.0,0.00016115,2]
[400002382,1767010238241,-500.0,0.00016115,2]
[400002383,1767010238250,-500.0,0.00016115,2]
[400002384,1767010238259,-500.0,0.00016115,2]
[400002385,1767010238269,-500.0,0.00016115,2]
[400002386,1767010238278,-500.0,0.00016115,2]
[400002387,1767010238287,-500.0,0.00016115,2]
[400002388,1767010238297,-500.0,0.00016115,2]
[400002389,1767010238306,-500.0,0.00016115,2]
[400002390,1767010238316,-500.0,0.00016115,2]
[400002391,1767010238325,-500.0,0.00016115,2]
[400002392,1767010238334,-500.0,0.00016115,2]
[400002393,1767010238344,-500.0,0.00016115,2]
[400002394,1767010238354,-500.0,0.00016115,2]
[400002395,1767010238364,-500.0,0.00016115,2]
[400002396,1767010238373,-59.23124686,0.00016115,2]
[400002397,1767010238386,-440.76875314,0.00016115,2]
[400002398,1767010238399,-500.0,0.00016115,2]
[400002399,1767010238409,-500.0,0.00016115,2]
[400002400,1767010238419,-500.0,0.00016115,2]
[400002401,1767010238428,-500.0,0.00016115,2]
[400002402,1767010238438,-500.0,0.00016115,2]
[400002403,1767010238448,-500.0,0.00016115,2]
[400002404,1767010238458,-500.0,0.00016115,2]
[400002405,1767010238467,-500.0,0.00016115,2]
[400002406,1767010238477,-500.0,0.00016115,2]
[400002408,1767010238487,-500.0,0.00016115,2]
[400002410,1767010238497,-500.0,0.00016115,2]
[400002412,1767010238506,-500.0,0.00016115,2]
[400002414,1767010238516,-500.0,0.00016115,2]
[400002416,1767010238526,-500.0,0.00016115,2]
[400002418,1767010238535,-500.0,0.00016115,2]
[400002420,1767010238545,-500.0,0.00016115,2]
[400002422,1767010238554,-500.0,0.00016115,2]
[400002424,1767010238566,-500.0,0.00016115,2]
[400002425,1767010238575,-500.0,0.00016115,2]
[400002428,1767010238584,-500.0,0.00016115,2]
[400002429,1767010238594,-500.0,0.00016115,2]
[400002432,1767010238603,-500.0,0.00016115,2]
[400002433,1767010238613,-445.2397949,0.00016115,2]
[400002435,1767010238622,-30.6009247,0.00016115,2]
[400002440,1767010238661,-906.8990753,0.00016115,2]
[400002442,1767010238671,-626.2018189,0.00016115,2]
[400002444,1767010238682,-311.2981811,0.00016115,2]
[400002447,1767010238692,-937.5,0.00016115,2]
[400002448,1767010238702,-937.5,0.00016115,2]
[400002450,1767010238711,-937.5,0.00016115,2]
[400002452,1767010238721,-937.5,0.00016115,2]
[400002454,1767010238731,-937.5,0.00016115,2]
[400002457,1767010238742,-937.5,0.00016115,2]
[400002458,1767010238752,-937.5,0.00016115,2]
[400002461,1767010238762,-124.88484154,0.00016115,2]
[400002463,1767010238774,-812.61515846,0.00016115,2]
[400002465,1767010238787,-937.5,0.00016115,2]
[400002467,1767010238796,-937.5,0.00016115,2]
[400002469,1767010238806,-5990.22,0.00016116,2]
[400002471,1767010238816,-3189.73,0.00016116,2]
[400002473,1767010238825,-150.99,0.00016116,2]
[400002475,1767010238835,-150.99,0.00016116,2]
[400002477,1767010238845,-1195.74,0.00016116,2]
[400002479,1767010238854,-9999.99,0.00016116,2]
[400002481,1767010238863,-12672.64,0.00016116,2]
[400002483,1767010238873,-9999.99,0.00016116,2]
[400002485,1767010238883,-9999.99,0.00016116,2]
[400002487,1767010238893,-9999.99,0.00016116,2]
[400002488,1767010238903,-999.99,0.00016116,2]
[400002489,1767010238912,-299.99,0.00016116,4]
[400002490,1767010238926,-14917.87,0.00016116,2]
[400002491,1767010238935,-5244.26484155,0.00016116,2]
[400002492,1767010238951,-438.1185238,0.00016116,2]
[400002493,1767010240374,-237.17,0.00015685,2]
[400002494,1767010240391,-4317.60663465,0.00016116,2]
[400002495,1767010240402,-999.0,0.00016167,3]
[400002496,1767010240412,-595.37131296,0.00016169,2]
[400002497,1767010240424,-1218.83,0.00016216,2]
[400002498,1767010240434,-812.84151911,0.00016216,2]
[400002499,1767010240445,-150.0,0.00016219,2]
[400002500,1767010240455,-500.0,0.00016219,2]
[400002501,1767010240464,-150.0,0.00016219,2]
[400002502,1767010240474,-150.0,0.00016219,2]
[400002503,1767010240484,-150.0,0.00016219,2]
[400002504,1767010240493,-74609.14537596,0.00016234,2]
[400002505,1767010240504,-150.0,0.00016246,2]
[400002506,1767010240515,-518.16694322,0.00016246,2]
[400002507,1767010240524,-150.0,0.00016246,2]
[400002508,1767010240535,-150.0,0.00016246,2]
[400002509,1767010240545,-150.0,0.00016274,2]
[400002510,1767010240555,-150.0,0.00016274,2]
[400002511,1767010240566,-200.0,0.00016274,2]
[400002512,1767010240576,-150.0,0.00016301,2]
[400002513,1767010240586,-150.0,0.00016301,2]
[400002514,1767010240595,-150.0,0.00016329,2]
[400002515,1767010240606,-218.90461355,0.00016356,2]
[400002516,1767010240616,-1000.0,0.000164,2]
[400002517,1767010240626,-166.66,0.00016425,2]
[400002518,1767010240637,-2592.0,0.00016438,2]
[400002519,1767010240650,-5128.41,0.00016438,2]
[400002520,1767010240660,-263.22073191,0.00016442,2]
[400002521,1767010240669,-587.0,0.0001645,2]
[400002522,1767010240681,-1218.87792798,0.0001649,2]
[400002523,1767010240690,-1000.0,0.000166,2]
[400002524,1767010240699,-1744.51107542,0.00016618,2]
[400002525,1767010240708,-2027.82811837,0.0001666,2]
[400002526,1767010240719,-250.0,0.00016679,2]
[400002527,1767010240729,-433.38,0.00016708,2]
[400002528,1767010240740,-617.40005154,0.00016717,2]
[400002529,1767010240749,-3578.30706416,0.00016731,2]
[400002531,1767010240758,-2000.0,0.00016764,2]
[400002533,1767010240768,-2000.0,0.00016764,2]
[400002534,1767010240778,-1672.637,0.00016764,2]
[400002535,1767010240787,-168.0,0.00016786,2]
[400002536,1767010240797,-1000.0,0.000168,2]
[400002537,1767010240806,-711.03996689,0.00016803,2]
[400002538,1767010240815,-168.0,0.00016822,2]
[400002539,1767010240824,-168.0,0.00016878,2]
[400002540,1767010240833,-202.35898371,0.00016886,2]
[400002541,1767010240842,-1033.46409582,0.000169,2]
[400002542,1767010240852,-246.50965402,0.000169,2]
[400002543,1767010240861,-168.0,0.00016929,2]
[400002545,1767010240870,-168.0,0.0001693,2]
[400002547,1767010240879,-165.27,0.00016943,2]
[400002549,1767010240888,-904.9283916,0.0001699,2]
[400002550,1767010240897,-500.0,0.00016999,2]
[400002551,1767010240908,-500.0,0.00016999,2]
[400002552,1767010240919,-393.75002297,0.00016999,2]
[400002553,1767010240929,-215.42397199,0.00016999,2]
[400002554,1767010240938,-201.3416122,0.00016999,2]
[400002555,1767010240947,-500.0,0.00016999,2]
[400002556,1767010240956,-208.49643561,0.00016999,2]
[400002557,1767010240966,-1626100.00097752,0.00017,2]
[400002558,1767010240975,-263727.02854433,0.00017,2]
[400002559,1767010240984,-715769.33500921,0.00017,2]
[400002560,1767010240993,-23277.28816061,0.00017,2]
[400002561,1767010241003,-250.0,0.00017,2]
[400002562,1767010241012,-2000.0,0.00017,2]
[400002563,1767010241021,-1194.18888346,0.00017,2]
[400002564,1767010241030,-152.426097,0.00017,2]
[400002565,1767010241039,-151.0,0.00017,2]
[400002566,1767010241048,-151.0,0.00017,2]
[400002567,1767010241057,-151.0,0.00017,2]
[400002568,1767010241066,-151.0,0.00017,2]
[400002569,1767010241076,-151.0,0.00017,2]
[400002570,1767010241085,-158.193572,0.00017,2]
[400002571,1767010241094,-170.582746,0.00017,2]
[400002572,1767010241104,-1000.0,0.00017,2]
[400002573,1767010241114,-422.845317,0.00017,2]
[400002574,1767010241129,-422.845317,0.00017,2]
[400002575,1767010241142,-422.845317,0.00017,2]
[400002576,1767010241152,-422.845317,0.00017,2]
[400002577,1767010241163,-422.845317,0.00017,2]
[400002578,1767010241172,-422.845317,0.00017,2]
[400002579,1767010241182,-422.845317,0.00017,2]
[400002580,1767010241191,-422.845317,0.00017,2]
[400002581,1767010241201,-352.483327,0.00017,2]
[400002582,1767010241210,-352.483327,0.00017,2]
[400002583,1767010241219,-352.483327,0.00017,2]
[400002584,1767010241228,-352.483327,0.00017,2]
[400002585,1767010241240,-352.483327,0.00017,2]
[400002586,1767010241250,-352.483327,0.00017,2]
[400002587,1767010241259,-352.483327,0.00017,2]
[400002588,1767010241268,-352.483327,0.00017,2]
[400002589,1767010241277,-288.792626,0.00017,2]
[400002590,1767010241286,-151.0,0.00017,2]
[400002591,1767010241296,-151.0,0.00017,2]
[400002592,1767010241305,-151.0,0.00017,2]
[400002593,1767010241314,-168.0,0.0001702,2]
[400002594,1767010241323,-211.0,0.00017029,2]
[400002595,1767010241333,-565.0,0.00017117,2]
[400002596,1767010241342,-565.0,0.00017121,2]
[400002597,1767010241351,-168.0,0.00017176,2]
[400002598,1767010241360,-168.0,0.00017177,2]
[400002599,1767010241369,-253.0,0.00017191,2]
[400002600,1767010241379,-640.24385345,0.00017265,2]
[400002601,1767010241388,-211.0,0.00017282,2]
[400002602,1767010241398,-293.0,0.00017357,2]
[400002603,1767010241407,-565.0,0.00017376,2]
[400002604,1767010241416,-166.66,0.00017392,2]
[400002605,1767010241426,-1000.0,0.000174,2]
[400002606,1767010241435,-565.0,0.00017515,2]
[400002607,1767010241445,-1008.9,0.00017569,2]
[400002608,1767010241454,-168.0,0.00017605,2]
[400002609,1767010241464,-216.63355297,0.0001762,2]
[400002610,1767010241473,-1000.0,0.00017692,2]
[400002611,1767010241483,-185.76,0.00017741,2]
[400002612,1767010241495,-168.0,0.00017765,2]
[400002613,1767010241504,-168.0,0.0001777,2]
[400002614,1767010241514,-168.0,0.00017806,2]
[400002615,1767010241523,-3671.0,0.00017808,2]
[400002616,1767010241533,-663.93287602,0.00017813,2]
[400002617,1767010241543,-168.0,0.00017868,2]
[400002618,1767010241553,-1802.11505189,0.000179,2]
[400002619,1767010241564,-221.31268556,0.000179,2]
[400002620,1767010241576,-294.0,0.00017957,2]
[400002621,1767010241586,-148097.81842165,0.00017998,2]
[400002622,1767010241597,-356585.34704847,0.00018,2]
[400002623,1767010241607,-151.0,0.00018,2]
[400002624,1767010241617,-422.845317,0.00018,2]
[400002625,1767010241627,-422.845317,0.00018,2]
[400002626,1767010241638,-422.845317,0.00018,2]
[400002627,1767010241647,-422.845317,0.00018,2]
[400002628,1767010241657,-352.483327,0.00018,2]
[400002629,1767010241666,-352.483327,0.00018,2]
[400002630,1767010241675,-352.483327,0.00018,2]
[400002631,1767010241685,-352.483327,0.00018,2]
[400002632,1767010241694,-151.0,0.00018,2]
[400002633,1767010241703,-168.0,0.00018008,2]
[400002634,1767010241712,-823.0,0.00018027,2]